bitfinex/quotes_ETHUSD_20240621
["timestamp","ask_amount","ask_price","bid_price","bid_amount"]
[1718968146220,0.55034088,3512.1,3511.0,2.3563]
[1718968146426,0.49329657,3512.0,3511.1,0.03512373]
[1718968146936,0.49324443,3511.9,3511.1,0.06977158]
[1718968147147,0.49324443,3512.5,3511.1,0.06977158]
[1718968147344,1.35602762,3512.4,3511.2,0.24260716]
[1718968147663,1.19565887,3512.3,3511.3,0.03464587]
[1718968147811,1.25270318,3512.2,3511.3,0.0697696]
[1718968148012,0.49324443,3512.1,3511.3,0.0697696]
[1718968148215,0.49324443,3512.1,3511.3,0.80058743]
[1718968148525,0.49325407,3512.0,3511.3,0.80058743]
[1718968148720,0.49325407,3512.1,3511.3,0.80058743]
[1718968149051,0.49325407,3512.0,3511.3,0.80058743]
[1718968149343,0.49325407,3511.9,3511.3,0.80058743]
[1718968150359,3.0,3512.7,3511.5,2.3837]
[1718968150552,1.19539353,3512.6,3511.6,0.03494411]
[1718968150752,0.49317078,3512.5,3511.6,0.03494411]
[1718968150916,0.49317078,3513.0,3511.6,0.36037497]
[1718968151116,0.70245679,3512.9,3511.6,0.36037497]
[1718968151335,0.55021509,3512.8,3511.6,0.36037497]
[1718968151535,0.4931624,3512.7,3511.6,0.36037497]
[1718968151869,0.05704431,3512.6,3511.6,0.36037497]
[1718968152012,0.55020425,3512.6,3511.6,0.36037497]
[1718968152209,0.49315994,3512.5,3511.6,0.36037497]
[1718968152574,0.54075432,3513.0,3511.6,0.36037497]
[1718968152575,0.05704431,3512.9,3511.6,0.36037497]
[1718968152713,0.49313474,3512.8,3511.6,0.36037497]
[1718968152921,0.05704431,3512.7,3511.7,0.35797394]
[1718968153122,0.49313474,3512.6,3511.7,0.35797394]
[1718968153342,0.49313474,3512.6,3511.8,0.03494411]
[1718968153523,0.49313474,3512.6,3511.7,0.35797394]
[1718968153822,0.49313474,3512.5,3511.8,0.3091115]
[1718968154024,0.49313474,3512.8,3511.8,0.3091115]
[1718968154292,0.55017905,3512.7,3511.8,0.27416739]
[1718968154548,0.05704431,3512.7,3511.6,7.31344991]
[1718968154755,0.49315453,3512.6,3511.7,0.03471071]
[1718968154963,0.05704431,3512.5,3511.7,0.03471071]
[1718968155112,0.49315453,3512.4,3511.7,0.03471071]
[1718968155312,0.05704431,3512.3,3511.7,0.03471071]
[1718968155644,0.49315453,3512.2,3511.7,0.03471071]
[1718968156150,0.49319057,3512.1,3511.7,0.03471071]
[1718968156361,0.49319057,3512.8,3511.7,0.03471071]
[1718968156511,0.75917762,3512.7,3511.7,0.03471071]
[1718968156714,1.19532388,3512.6,3511.7,0.03471071]
[1718968156914,0.54075432,3513.0,3511.7,0.03471071]
[1718968156915,3.58736819,3512.5,3511.7,0.03471071]
[1718968157116,4.5540607,3512.4,3511.7,0.03471071]
[1718968157356,1.25236819,3512.3,3511.7,0.03471071]
[1718968157520,1.25236819,3512.2,3511.7,0.03471071]
[1718968157721,0.70213331,3512.1,3511.7,0.03471071]
[1718968158079,0.49321544,3512.0,3511.7,0.03471071]
[1718968158273,0.55025975,3512.0,3511.7,0.03471071]
[1718968158414,1.25215102,3511.9,3511.7,0.03471071]
[1718968158619,1.19501485,3511.8,3511.7,0.03471071]
[1718968158820,1.19501485,3511.8,3511.0,7.31344991]
[1718968159119,1.25205916,3511.7,3511.0,7.31344991]
[1718968159354,1.19501485,3511.6,3510.7,2.4891]
[1718968159660,1.25205916,3511.5,3510.7,2.4891]
[1718968159855,1.19501485,3511.4,3510.7,2.4891]
[1718968160027,1.19501485,3511.3,3510.7,2.4891]
[1718968160225,1.19486916,3511.2,3510.8,0.98025499]
[1718968160541,0.56937368,3512.3,3510.8,0.98025499]
[1718968160758,1.25200914,3512.2,3510.7,2.4891]
[1718968160936,1.19497619,3512.1,3510.7,2.4891]
[1718968161134,1.2520205,3512.0,3510.7,2.4891]
[1718968161330,0.70167146,3511.9,3510.7,2.4891]
[1718968161542,0.55034981,3511.8,3510.7,2.4891]
[1718968161756,1.25202127,3511.7,3510.7,3.46935499]
[1718968161945,1.19497696,3511.6,3510.7,3.46935499]
[1718968162146,1.25202127,3511.5,3510.7,3.46935499]
[1718968162351,1.19497696,3511.4,3510.7,3.46935499]
[1718968162558,1.19497696,3511.3,3510.7,3.46935499]
[1718968162758,1.19497696,3511.2,3510.8,0.87153697]
[1718968163054,0.70167146,3511.1,3510.8,0.87153697]
[1718968163269,0.70170148,3511.0,3510.8,0.87153697]
[1718968163468,0.05704431,3512.2,3510.7,2.4891]
[1718968163763,1.19491265,3512.1,3510.7,2.4891]
[1718968163973,1.25195696,3512.0,3510.7,2.4891]
[1718968164181,1.1949129,3511.9,3510.7,2.4891]
[1718968164325,1.25195721,3511.8,3510.7,3.46935499]
[1718968164528,1.1949129,3511.7,3510.7,3.46935499]
[1718968164768,1.1949129,3511.6,3510.7,3.46935499]
[1718968164967,0.70160881,3511.5,3510.7,3.46935499]
[1718968165144,3.0,3512.4,3510.8,0.87153697]
[1718968165338,1.25180021,3512.3,3510.8,0.87153697]
[1718968165547,0.75856397,3512.2,3510.9,2.4733]
[1718968165758,1.19473917,3512.1,3510.9,2.4733]
[1718968165957,3.0,3512.4,3511.0,0.3344837]
[1718968165958,1.19473917,3512.0,3511.0,0.3344837]
[1718968166158,1.19473917,3511.9,3511.0,0.3344837]
[1718968166448,3.0,3512.4,3511.0,0.3344837]
[1718968166449,0.70151966,3511.8,3511.0,0.3344837]
[1718968166663,0.70151966,3511.7,3511.0,0.3344837]
[1718968166868,0.70151966,3511.6,3511.1,0.36793207]
[1718968167063,0.05704431,3512.3,3511.1,0.36793207]
[1718968167287,0.75884603,3512.2,3511.2,0.03511292]
[1718968167434,0.70180172,3512.1,3511.2,0.03511292]
[1718968167635,0.49320928,3512.0,3511.2,0.03511292]
[1718968167936,0.70180172,3511.9,3511.3,2.4606]
[1718968168137,0.70180172,3511.8,3511.4,0.32134095]
[1718968168459,3.0,3512.4,3511.4,0.32134095]
[1718968168636,1.19484976,3512.3,3511.4,0.32134095]
[1718968168836,3.0,3512.4,3511.4,0.32134095]
[1718968168837,0.7016956,3512.2,3511.4,0.32134095]
[1718968169037,0.7016956,3512.1,3511.5,0.33319409]
[1718968169275,0.7016956,3512.0,3511.5,0.33319409]
[1718968169481,0.7016956,3511.9,3511.6,0.03496568]
[1718968169652,3.0,3512.4,3511.6,0.03496568]
[1718968169852,1.1950548,3512.3,3511.6,0.28287598]
[1718968170057,0.70190164,3512.2,3511.7,0.03496568]
[1718968170254,0.70190164,3512.1,3511.7,0.03496568]
[1718968170449,0.70190164,3512.0,3511.7,0.03496568]
[1718968170656,3.0,3512.4,3511.7,0.03496568]
[1718968170880,0.70197653,3512.3,3511.7,0.03496568]
[1718968171082,1.19512416,3512.3,3511.7,0.03496568]
[1718968171260,0.70197653,3512.2,3511.7,0.03496568]
[1718968171458,0.70197653,3512.1,3511.7,0.03496568]
[1718968171665,0.70197653,3512.0,3511.7,0.03496568]
[1718968171859,0.70196507,3511.9,3511.7,0.03496568]
[1718968172062,0.05704431,3513.0,3511.7,0.03496568]
[1718968172374,1.74814851,3512.9,3511.7,7.34841559]
[1718968172574,1.25199839,3512.8,3511.7,7.34841559]
[1718968172892,1.25199839,3512.7,3511.7,7.34841559]
[1718968173049,1.19495408,3512.6,3511.7,7.34841559]
[1718968173249,1.25199839,3512.5,3511.7,7.34841559]
[1718968173494,1.19495408,3512.4,3511.7,7.34841559]
[1718968173662,1.19496399,3512.3,3511.7,7.34841559]
[1718968173861,1.19496399,3512.2,3511.7,7.34841559]
[1718968174075,0.7017908,3512.1,3511.7,0.03496568]
[1718968174285,0.7017908,3512.0,3511.7,0.03496568]
[1718968174500,0.7017908,3511.9,3511.3,2.4606]
[1718968174700,0.55319443,3512.9,3511.8,0.03451323]
[1718968174851,1.25178814,3512.8,3511.4,0.97740499]
[1718968175052,1.25178814,3512.7,3511.9,0.03451323]
[1718968175279,1.37524209,3512.6,3511.4,0.97740499]
[1718968175474,1.25178814,3512.5,3511.4,0.97740499]
[1718968175681,1.19474383,3512.4,3511.5,0.03451323]
[1718968175879,1.25178814,3512.3,3511.5,0.03451323]
[1718968176062,1.25178814,3512.2,3511.5,0.03451323]
[1718968176398,1.19474383,3512.1,3511.5,0.03451323]
[1718968176586,1.19474383,3512.0,3511.5,0.03451323]
[1718968176897,0.70157544,3511.9,3511.5,0.03451323]
[1718968177055,0.70157544,3511.8,3511.5,0.03451323]
[1718968177459,0.70157544,3511.7,3511.5,0.03451323]
[1718968177672,0.05704431,3512.3,3511.5,0.03451323]
[1718968177970,1.19464873,3512.2,3511.5,0.03451323]
[1718968178170,1.25169304,3512.1,3511.3,2.4606]
[1718968178387,1.19464873,3512.0,3511.4,0.03455272]
[1718968178573,1.19464873,3511.9,3511.4,0.03455272]
[1718968178756,3.0,3512.4,3511.4,0.03455272]
[1718968178757,0.70144605,3511.8,3511.4,0.03455272]
[1718968178963,0.70144605,3511.7,3511.4,1.01541298]
[1718968179183,0.05704431,3512.3,3511.4,1.01541298]
[1718968179355,1.19472698,3512.2,3511.4,0.03455272]
[1718968179557,1.19472698,3512.1,3511.4,0.03455272]
[1718968179762,1.25177129,3512.0,3511.1,7.31344991]
[1718968180014,0.70150731,3511.9,3511.2,0.03460299]
[1718968180161,0.49322485,3511.8,3511.2,0.03460299]
[1718968180361,3.0,3512.4,3511.2,0.03460299]
[1718968180362,0.70150731,3511.7,3511.2,0.03460299]
[1718968180687,2.3428,3512.5,3511.1,7.31344991]
[1718968180688,0.70144024,3511.6,3511.1,7.31344991]
[1718968180889,0.05704431,3512.3,3511.3,0.03465326]
[1718968181059,3.0,3512.4,3511.1,7.31344991]
[1718968181060,1.25169439,3512.2,3511.1,7.31344991]
[1718968181259,1.19464792,3512.1,3511.4,0.03465326]
[1718968181464,1.19464792,3512.0,3511.2,0.0345994]
[1718968181688,1.19464792,3511.9,3511.5,0.03460299]
[1718968181999,1.19464792,3511.8,3511.6,0.03460299]
[1718968182179,0.70144648,3511.7,3511.6,0.03460299]
[1718968182376,0.70144648,3511.7,3511.1,7.31344991]
[1718968182592,0.05704431,3512.3,3511.2,0.03460299]
[1718968182885,1.25172783,3512.2,3511.2,0.03460299]
[1718968183095,1.19468352,3512.1,3511.2,0.03460299]
[1718968183292,0.70147802,3512.0,3511.2,0.03460299]
[1718968183460,0.70147802,3511.9,3511.2,0.03460299]
[1718968183661,0.49320635,3511.8,3511.2,0.03460299]
[1718968183981,0.70147802,3511.7,3511.2,0.03460299]
[1718968184184,0.05704431,3512.3,3511.1,7.31344991]
[1718968184402,1.25178272,3512.2,3511.2,0.03460299]
[1718968184610,1.19473841,3512.1,3511.2,0.03460299]
[1718968184916,1.25178272,3512.0,3511.2,0.03460299]
[1718968185207,1.19473841,3511.9,3511.2,0.03460299]
[1718968185407,1.25178272,3511.8,3511.2,0.03460299]
[1718968185594,1.25178272,3511.7,3511.2,0.03460299]
[1718968185774,1.19473841,3511.6,3511.2,0.03460299]
[1718968186101,1.19477452,3511.5,3511.2,0.03460299]
[1718968186277,0.49324106,3511.5,3511.1,7.31344991]
[1718968186478,0.05704431,3512.2,3511.3,0.03467837]
[1718968186681,1.55555302,3512.1,3511.1,7.31344991]
[1718968186996,1.25165992,3512.0,3511.1,7.31344991]
[1718968187198,1.19461561,3511.9,3511.2,0.03467837]
[1718968187384,1.25165992,3511.8,3511.2,0.03467837]
[1718968187707,1.25165992,3511.7,3511.2,0.03467837]
[1718968187871,1.19461561,3511.6,3511.2,0.03467837]
[1718968188071,1.19459686,3511.5,3511.1,7.31344991]
[1718968188271,0.36093741,3512.1,3511.3,0.03465171]
[1718968188512,1.25168043,3512.0,3511.1,7.31344991]
[1718968188690,1.25168043,3512.0,3511.4,0.03465171]
[1718968188691,1.3558979,3511.9,3511.4,0.03465171]
[1718968189006,1.25168043,3511.8,3511.5,0.03465171]
[1718968189304,1.25168043,3511.7,3511.5,0.03465171]
[1718968189510,0.70138381,3511.6,3511.1,7.31344991]
[1718968189669,0.49325722,3511.5,3511.1,7.31344991]
[1718968189868,0.70138381,3511.4,3511.1,7.31344991]
[1718968190207,2.32,3511.8,3510.9,2.3286]
[1718968190512,1.25161335,3511.7,3510.9,2.3286]
[1718968190802,2.32,3511.8,3510.6,9.71514991]
[1718968193010,3.04954563,3513.0,3510.6,9.71514991]
[1718968193209,2.2698,3512.8,3510.6,9.71514991]
[1718968193504,0.55,3512.7,3510.6,9.71514991]
[1718968193708,3.55,3512.7,3510.6,9.71514991]
[1718968197020,3.55,3512.7,3510.7,0.0348133]
[1718968197318,0.58198,3512.6,3510.7,0.0348133]
[1718968198520,0.63152878,3512.6,3510.8,2.3123]
[1718968198704,0.58198,3512.6,3510.8,2.3123]
[1718968199024,0.58198,3512.6,3510.9,0.03493899]
[1718968199204,0.58198,3512.6,3511.0,0.2347239]
[1718968200017,0.58198,3512.6,3511.1,0.03493899]
[1718968200678,0.49322903,3512.5,3511.1,0.03493899]
[1718968201506,2.76914529,3512.4,3511.1,0.03493899]
[1718968201681,3.82835782,3512.3,3511.1,0.03493899]
[1718968201901,0.49324529,3512.2,3511.1,0.03493899]
[1718968202915,0.49324529,3512.2,3511.1,0.09189283]
[1718968203840,0.49324529,3512.2,3511.1,0.03493899]
[1718968204594,0.49324102,3512.1,3511.1,0.03493899]
[1718968204792,0.5852041,3512.0,3511.1,0.03493899]
[1718968205141,0.49324102,3511.9,3511.1,0.03493899]
[1718968205492,0.49324102,3512.0,3511.1,0.03493899]
[1718968205715,0.49324102,3511.9,3511.1,0.03493899]
[1718968205928,0.49324102,3512.0,3511.1,0.03493899]
[1718968206142,0.49324102,3511.9,3511.1,0.82673478]
[1718968206289,3.0,3512.1,3511.1,3.18283478]
[1718968206290,0.49324102,3512.0,3511.1,3.18283478]
[1718968206921,2.50524676,3513.0,3511.2,2.9136]
[1718968206922,3.0,3512.9,3511.2,2.9136]
[1718968207096,0.49314783,3512.8,3511.4,2.3636]
[1718968207294,0.49314783,3512.8,3511.5,0.05694199]
[1718968207512,0.49314124,3512.7,3511.5,0.05694199]
[1718968207718,0.49314124,3512.8,3511.6,0.38756336]
[1718968207992,3.0,3512.9,3511.7,2.31243874]
[1718968208192,0.49311432,3512.8,3511.8,0.05693711]
[1718968208506,0.49311432,3512.8,3511.9,0.03497131]
[1718968208815,0.04955316,3513.7,3512.0,0.05693544]
[1718968208816,0.49308932,3512.7,3512.0,0.05693544]
[1718968209014,0.49308932,3513.3,3512.0,0.05693544]
[1718968209221,0.49308932,3513.2,3512.0,0.05693544]
[1718968209434,0.49308932,3513.3,3512.1,0.03497131]
[1718968209733,0.1214126,3514.2,3512.1,0.91546845]
[1718968209734,0.49308932,3513.2,3512.1,0.91546845]
[1718968209944,0.49308932,3514.1,3512.1,0.91546845]
[1718968210438,0.49308932,3514.1,3512.2,2.38364721]
[1718968210686,0.49300089,3514.0,3512.3,0.34435836]
[1718968210809,0.49300089,3514.1,3512.3,0.34435836]
[1718968211121,0.49300089,3514.1,3512.4,0.03497131]
[1718968213002,0.49300089,3514.1,3512.4,0.05843175]
[1718968213202,0.62718905,3514.0,3512.5,0.27575433]
[1718968213527,0.49300089,3513.9,3512.6,0.05784528]
[1718968213695,0.49302723,3513.8,3512.6,0.05784528]
[1718968213901,0.49302723,3513.9,3512.6,0.05784528]
[1718968214222,0.49302723,3513.8,3512.6,0.05784528]
[1718968214398,0.49302723,3513.9,3512.6,0.05784528]
[1718968214592,0.49302723,3514.1,3512.6,0.05784528]
[1718968214819,0.49302723,3514.0,3512.6,0.05784528]
[1718968215226,0.49302723,3514.0,3512.6,0.03438618]
[1718968216044,0.62719169,3514.1,3512.6,0.03438618]
[1718968216331,0.49302159,3514.0,3512.6,0.03438618]
[1718968218123,2.4693,3513.9,3512.6,0.03438618]
[1718968218341,0.35895133,3513.8,3512.3,19.59344991]
[1718968218506,0.35895133,3513.8,3512.7,0.03379024]
[1718968218695,0.35895133,3513.8,3512.3,19.59344991]
[1718968218696,3.35895133,3513.8,3512.3,19.59344991]
[1718968218897,3.35895133,3513.8,3512.8,0.03379024]
[1718968219114,3.35895133,3513.8,3512.3,19.59344991]
[1718968219399,0.63212729,3513.7,3512.4,1.52129482]
[1718968219595,0.63212729,3513.7,3512.5,0.03379024]
[1718968222730,3.0,3513.8,3512.5,0.03379024]
[1718968222940,0.40868962,3514.2,3512.6,2.446]
[1718968223099,0.1214126,3514.2,3512.6,2.446]
[1718968223309,0.1214126,3514.2,3512.7,0.36456012]
[1718968223533,0.1214126,3514.2,3512.8,0.05682996]
[1718968223853,0.1214126,3514.2,3512.9,0.03293964]
[1718968224042,0.1214126,3514.2,3512.9,7.40321627]
[1718968227751,0.1214126,3514.2,3513.0,2.4455]
[1718968228051,0.1214126,3514.2,3513.1,0.97918896]
[1718968228208,0.1214126,3514.2,3513.1,1.01185949]
[1718968232068,0.1214126,3514.2,3513.1,1.04085179]
[1718968233119,0.1214126,3514.2,3513.2,2.3715]
[1718968233436,0.1214126,3514.2,3513.1,1.04085179]
[1718968233437,0.1214126,3514.2,3513.3,0.06170228]
[1718968233641,0.1214126,3514.2,3513.4,2.3715]
[1718968233828,0.1214126,3514.2,3513.6,2.2573]
[1718968234660,0.1214126,3514.2,3513.7,0.06123947]
[1718968235932,0.1214126,3514.2,3513.8,0.01759882]
[1718968236346,0.1214126,3514.2,3513.6,2.2573]
[1718968236347,0.1214126,3514.2,3513.9,0.06123947]
[1718968236731,0.1214126,3514.2,3513.6,2.2573]
[1718968237035,0.1214126,3514.2,3513.7,0.25006202]
[1718968237274,0.1214126,3514.2,3513.7,0.31130149]
[1718968237631,0.1214126,3514.2,3513.8,2.3867]
[1718968237832,0.1214126,3514.2,3514.0,2.2835]
[1718968238466,0.1214126,3514.2,3514.1,0.06113547]
[1718968238780,0.1214126,3514.2,3514.1,0.44035622]
[1718968244985,0.1214126,3514.2,3514.1,0.06113547]
[1718968245354,0.1214126,3514.2,3513.6,2.311]
[1718968245603,0.1214126,3514.2,3514.1,0.06113547]
[1718968246069,0.1214126,3514.2,3513.6,2.311]
[1718968246265,0.1214126,3514.2,3514.1,0.06091313]
[1718968246466,0.1214126,3514.2,3513.6,2.311]
[1718968246668,0.1214126,3514.2,3514.1,0.06091313]
[1718968246870,0.1214126,3514.2,3513.7,0.25543202]
[1718968247077,0.1214126,3514.2,3514.1,0.06091313]
[1718968247587,0.1214126,3514.2,3513.7,0.25543202]
[1718968247770,0.1214126,3514.2,3514.1,0.06083783]
[1718968247989,0.1214126,3514.2,3513.7,0.25543202]
[1718968248157,0.1214126,3514.2,3514.1,0.06083783]
[1718968248351,0.1214126,3514.2,3513.5,0.24332023]
[1718968248556,0.1214126,3514.2,3514.1,0.06083783]
[1718968248775,0.1214126,3514.2,3513.5,0.24332023]
[1718968248977,0.1214126,3514.2,3514.1,0.06083783]
[1718968249218,0.1214126,3514.2,3513.5,0.24332023]
[1718968249378,0.1214126,3514.2,3514.1,0.06083783]
[1718968249900,0.1214126,3514.2,3513.5,0.24332023]
[1718968249901,0.1214126,3514.2,3513.9,2.3242]
[1718968250054,0.1214126,3514.2,3514.1,0.06092748]
[1718968250701,0.1214126,3514.2,3514.1,2.44362748]
[1718968256676,0.1214126,3514.2,3514.1,0.06092748]
[1718968256870,0.1214126,3514.2,3513.9,2.2935]
[1718968257102,0.1214126,3514.2,3514.1,0.06075898]
[1718968257305,0.1214126,3514.2,3514.1,0.2354259]
[1718968257603,0.1214126,3514.2,3514.1,0.29590164]
[1718968261437,0.1214126,3514.2,3514.1,0.06047574]
[1718968261593,0.1214126,3514.2,3513.6,3.0]
[1718968261804,0.1214126,3514.2,3513.5,2.49742023]
[1718968261998,0.1214126,3514.2,3513.7,0.06051159]
[1718968262213,0.1214126,3514.2,3513.6,0.55]
[1718968262417,0.1214126,3514.2,3513.8,0.06051159]
[1718968262607,0.1214126,3514.2,3513.9,0.06051159]
[1718968262996,0.1214126,3514.2,3513.5,2.49742023]
[1718968263202,0.1214126,3514.2,3514.0,0.06051159]
[1718968263434,0.1214126,3514.2,3513.5,2.49742023]
[1718968263730,0.1214126,3514.2,3513.6,1.28108701]
[1718968263949,0.1214126,3514.2,3513.6,1.3415986]
[1718968274219,0.1214126,3514.2,3513.6,0.06051159]
[1718968274220,2.77898938,3514.1,3513.6,0.06051159]
[1718968274579,0.4929167,3514.0,3513.3,7.31344991]
[1718968274777,0.4929167,3514.0,3513.7,0.06069442]
[1718968275200,0.4929167,3514.0,3513.3,7.31344991]
[1718968275473,0.4929167,3514.0,3513.8,0.06069442]
[1718968275679,0.4929167,3514.0,3513.4,3.09934499]
[1718968275898,0.4929167,3514.1,3513.9,0.06069442]
[1718968276076,0.4929167,3514.1,3513.4,3.09934499]
[1718968276077,0.49292015,3514.0,3513.4,3.09934499]
[1718968276284,0.49292015,3514.1,3513.5,1.10197391]
[1718968277044,0.1214126,3514.2,3513.5,1.10197391]
[1718968277291,0.1214126,3514.2,3513.6,0.55]
[1718968277637,0.1214126,3514.2,3513.7,0.06076972]
[1718968277978,0.1214126,3514.2,3513.9,2.4271]
[1718968278138,0.1214126,3514.2,3514.0,0.91353127]
[1718968278547,0.1214126,3514.2,3514.1,0.06076972]
[1718968278768,0.1214126,3514.2,3514.1,0.66506617]
[1718968279381,0.1214126,3514.2,3514.1,0.61076972]
[1718968280042,0.1214126,3514.2,3514.1,0.06076972]
[1718968280242,0.1214126,3514.2,3514.1,0.56206364]
[1718968281486,0.1214126,3514.2,3514.1,0.06076972]
[1718968281642,0.1214126,3514.2,3513.4,5.3206]
[1718968281843,0.1214126,3514.2,3513.5,0.55]
[1718968282042,0.1214126,3514.2,3513.6,0.06076972]
[1718968282270,0.04951794,3515.8,3514.0,1.713]
[1718968282499,2.4029,3516.5,3514.3,2.3578]
[1718968282796,2.4029,3516.5,3514.4,0.06076972]
[1718968282797,0.49263948,3516.4,3514.4,0.06076972]
[1718968282983,0.49263948,3516.4,3514.5,2.04071499]
[1718968283700,2.4029,3516.5,3514.6,0.06076972]
[1718968283998,0.49262857,3516.4,3514.7,0.55]
[1718968284673,0.49262857,3516.4,3514.8,0.06076972]
[1718968284892,0.49262857,3516.4,3514.9,7.86344991]
[1718968285069,0.78218143,3516.4,3515.0,0.36107697]
[1718968285264,0.49262857,3516.3,3515.1,0.06076972]
[1718968286005,2.4916,3516.2,3515.1,0.06076972]
[1718968286167,2.4916,3516.0,3515.1,0.06076972]
[1718968286369,0.49262857,3515.9,3515.1,0.06076972]
[1718968286593,2.4916,3515.8,3514.9,7.31344991]
[1718968286896,0.49275296,3515.7,3514.9,7.31344991]
[1718968287104,2.4916,3515.6,3515.0,0.06076972]
[1718968287272,0.74191296,3515.5,3515.0,0.06076972]
[1718968287480,0.49275296,3515.4,3514.5,19.59344991]
[1718968287783,0.49275296,3515.4,3514.6,0.06076972]
[1718968287988,2.2752,3515.3,3514.6,0.06076972]
[1718968288187,1.09446426,3515.2,3514.6,0.06076972]
[1718968288406,0.49275296,3515.1,3514.6,0.06076972]
[1718968288694,0.49275296,3515.1,3514.7,0.06033242]
[1718968288899,2.2752,3515.0,3514.1,7.31344991]
[1718968289112,0.49275296,3514.9,3514.2,0.06033242]
[1718968289696,0.49290378,3514.8,3514.2,0.06033242]
[1718968289971,3.0,3514.9,3514.2,0.06033242]
[1718968290197,2.2752,3515.0,3514.2,0.06033242]
[1718968290198,0.49291715,3514.7,3514.2,0.06033242]
[1718968290391,0.49291715,3514.6,3514.2,0.06033242]
[1718968290589,0.49291715,3514.8,3514.2,0.06033242]
[1718968290801,1.06972887,3514.8,3514.2,0.06033242]
[1718968290978,0.49291715,3514.7,3514.2,0.06033242]
[1718968291690,0.49291715,3514.8,3514.2,0.06033242]
[1718968291911,0.49291715,3514.7,3514.2,0.06033242]
[1718968292089,0.49291715,3514.8,3514.2,0.06033242]
[1718968292282,0.49291715,3514.7,3514.2,0.06033242]
[1718968292618,0.52752,3514.8,3514.2,0.06033242]
[1718968292619,0.49290873,3514.6,3514.2,0.06033242]
[1718968292787,0.49290873,3514.7,3514.2,0.06033242]
[1718968293904,0.49290873,3514.7,3513.7,19.59344991]
[1718968294071,0.49290873,3514.7,3513.8,0.06049017]
[1718968295695,0.52752,3514.8,3513.8,0.06049017]
[1718968295882,0.49290095,3514.7,3513.8,0.06049017]
[1718968298918,0.49289627,3514.6,3513.8,0.06049017]
[1718968299080,0.49289627,3514.7,3513.8,0.06049017]
[1718968299406,0.49289269,3514.6,3513.8,0.06049017]
[1718968299605,0.49289269,3514.7,3513.9,0.04726283]
[1718968299774,0.49288111,3514.6,3513.9,0.04726283]
[1718968299972,0.52752,3514.8,3514.0,0.06090237]
[1718968300284,0.49288248,3514.7,3514.0,0.06090237]
[1718968301413,3.0,3514.9,3514.1,0.04726014]
[1718968301414,0.49288248,3514.8,3514.1,0.04726014]
[1718968301575,3.0,3515.3,3514.1,0.04726014]
[1718968301775,2.289,3515.4,3514.1,0.04726014]
[1718968301776,0.49280446,3515.2,3514.2,0.06093105]
[1718968302071,0.49282136,3515.1,3514.3,0.04725745]
[1718968302286,0.49282136,3515.2,3514.3,0.04725745]
[1718968302493,0.49282136,3515.2,3514.4,0.06093105]
[1718968303314,1.0710035,3515.2,3514.4,0.06093105]
[1718968303608,0.49282136,3515.1,3514.4,0.06093105]
[1718968304779,3.0,3515.3,3514.4,0.06093105]
[1718968304985,0.49278318,3515.2,3514.4,0.06093105]
[1718968305205,3.0,3515.3,3514.4,0.06093105]
[1718968305517,0.49279895,3515.2,3514.4,0.06093105]
[1718968305679,3.49279895,3515.3,3514.4,0.80309489]
[1718968305882,3.49279895,3515.2,3514.4,0.80309489]
[1718968306105,0.49279895,3515.1,3514.4,0.80309489]
[1718968306288,0.49279895,3515.3,3514.4,0.80309489]
[1718968306499,0.04951104,3515.6,3514.5,3.34960025]
[1718968306706,2.3848,3515.9,3514.5,3.34960025]
[1718968306707,0.49276203,3515.5,3514.5,3.34960025]
[1718968306884,3.49276203,3515.8,3514.6,0.06093105]
[1718968307084,0.49276203,3515.7,3514.6,0.10834972]
[1718968307385,2.3848,3515.9,3514.7,0.341053]
[1718968307386,0.49276203,3515.6,3514.7,0.341053]
[1718968307586,0.49276203,3515.7,3514.6,0.10834972]
[1718968307887,0.49276203,3515.7,3514.6,0.04741867]
[1718968308109,0.49276203,3515.7,3514.7,0.0606801]
[1718968308304,0.49276922,3515.6,3514.7,0.0606801]
[1718968308516,0.49276922,3515.6,3514.7,0.401708]
[1718968308832,0.49277096,3515.5,3514.7,0.401708]
[1718968309125,0.49277096,3515.4,3514.7,0.401708]
[1718968309294,0.49277096,3515.7,3514.7,0.401708]
[1718968309499,0.49277184,3515.6,3514.8,0.37513069]
[1718968309712,0.49277184,3515.7,3514.9,0.06040407]
[1718968310025,0.49277184,3515.6,3514.9,0.06040407]
[1718968310237,0.49277184,3515.7,3514.9,0.06040407]
[1718968311520,0.49276883,3515.6,3514.9,0.06040407]
[1718968311706,0.49276883,3515.7,3514.9,0.06040407]
[1718968311910,0.49276883,3515.5,3514.6,7.36086858]
[1718968312083,3.54343053,3515.8,3514.7,0.06040407]
[1718968312084,0.49276883,3515.4,3514.7,0.06040407]
[1718968312282,3.54343053,3515.8,3514.7,0.06040407]
[1718968312283,0.49276883,3515.7,3514.7,0.06040407]
[1718968312592,1.13486877,3515.6,3514.7,0.06040407]
[1718968312794,0.49276883,3515.5,3514.7,0.06040407]
[1718968314441,0.64209994,3515.6,3514.7,0.06040407]
[1718968314597,2.3525,3515.3,3514.7,0.06040407]
[1718968314798,0.49281538,3515.2,3514.7,0.06040407]
[1718968315118,3.49281538,3515.2,3514.6,7.31344991]
[1718968315323,0.49281538,3515.1,3514.6,7.31344991]
[1718968315525,1.07734692,3515.1,3514.6,7.31344991]
[1718968315833,0.49281538,3515.0,3514.6,7.31344991]
[1718968315987,0.49281538,3515.0,3514.0,7.31344991]
[1718968316393,0.49281538,3515.0,3514.1,0.06056179]
[1718968317635,3.0,3515.2,3514.1,0.06056179]
[1718968317796,0.49284356,3514.9,3514.1,0.06056179]
[1718968318004,0.49284775,3514.8,3514.1,0.06056179]
[1718968318350,0.49284775,3514.7,3514.1,0.06056179]
[1718968318644,0.49284775,3514.6,3514.1,0.06056179]
[1718968318934,0.49284775,3514.5,3514.1,0.06056179]
[1718968319133,0.49284775,3515.1,3514.1,0.06056179]
[1718968322893,0.49284775,3515.1,3514.2,2.4491]
[1718968323212,2.4697,3515.8,3514.3,0.06077687]
[1718968323397,0.49282704,3515.0,3514.4,7.31344991]
[1718968323604,0.49282704,3514.9,3514.0,7.31344991]
[1718968323802,3.72989704,3515.5,3514.5,0.06073744]
[1718968324028,0.49282704,3515.4,3514.0,7.31344991]
[1718968324236,0.49282704,3515.4,3514.6,0.06073744]
[1718968324529,0.49282704,3515.4,3514.7,0.06073744]
[1718968324749,0.6100597,3515.3,3514.0,7.31344991]
[1718968324913,0.49282704,3515.2,3514.8,0.06073744]
[1718968325115,0.49282704,3515.2,3514.0,7.31344991]
[1718968325315,0.49282704,3515.2,3514.1,0.06073744]
[1718968325624,0.49282704,3515.1,3514.2,0.97320874]
[1718968325831,0.49282704,3515.4,3514.2,0.97320874]
[1718968326000,0.49282704,3515.4,3514.3,0.06075536]
[1718968326431,0.49282811,3515.3,3514.3,0.06075536]
[1718968326601,0.49282811,3515.4,3514.3,0.06075536]
[1718968326944,1.10289057,3515.3,3514.3,0.06075536]
[1718968327101,0.49283076,3515.2,3514.3,0.06075536]